lending/lending_fUSD_20251021
["ID","MTS","AMOUNT","RATE_DAILY","PERIOD"]
[391943428,1761018510738,-72.91902597,0.00013737,2]
[391943429,1761018510772,-92.91977603,0.00013742,2]
[391943430,1761018512913,-57.08022397,0.00013742,2]
[391943431,1761018512935,-121.82418013,0.00013752,2]
[391943432,1761018516707,-28.17581987,0.00013752,2]
[391943433,1761018516730,-150.0,0.00013752,2]
[391943434,1761018516753,-92.54605651,0.00013762,2]
[391943435,1761018518219,-57.45394349,0.00013762,2]
[391943436,1761018518243,-150.0,0.00013765,2]
[391943437,1761018518270,-92.54605651,0.00013769,2]
[391943438,1761018534872,-57.45394349,0.00013769,2]
[391943439,1761018535067,-150.0,0.00013769,2]
[391943440,1761018535089,-46.01915214,0.0001377,2]
[391943441,1761018537525,-103.98084786,0.0001377,2]
[391943442,1761018537552,-70.65680471,0.00013771,2]
[391943443,1761018540975,-79.34319529,0.00013771,2]
[391943444,1761018540998,-150.0,0.00013776,2]
[391943445,1761018541020,-75.24981815,0.00013787,2]
[391943446,1761018543581,-74.75018185,0.00013787,2]
[391943447,1761018543604,-79.55124696,0.00013796,2]
[391943448,1761018549566,-70.44875304,0.00013796,2]
[391943449,1761018549589,-145.33977603,0.00013796,2]
[391943450,1761018551131,-4.66022397,0.00013796,2]
[391943451,1761018551161,-149.16575325,0.00013799,2]
[391943452,1761018608156,794.95,0.00013089,2]
[391943453,1761018624240,-0.83424675,0.00013799,2]
[391943454,1761018625571,-245.70097785,0.00013805,2]
[391943455,1761018629807,-4.29902215,0.00013805,2]
[391943456,1761018629831,-150.0,0.00013812,2]
[391943457,1761018629853,-31.0383261,0.00013812,2]
[391943458,1761018631572,-118.9616739,0.00013812,2]
[391943459,1761018631595,-150.0,0.00013815,2]
[391943460,1761018631617,-42.79248497,0.00013816,2]
[391943472,1761018632121,-1252.46729843,0.00013816,2]
[391943473,1761018632132,-150.0,0.00013821,2]
[391943474,1761018632141,-150.0,0.00013827,2]
[391943476,1761018632154,-1200.0,0.00013827,2]
[391943479,1761018632164,-150.0,0.00013834,2]
[391943481,1761018632173,-150.0,0.00013834,2]
[391943483,1761018632183,-182.0,0.00013834,2]
[391943485,1761018632192,-150.0,0.00013834,2]
[391943487,1761018632202,-150.0,0.00013837,2]
[391943489,1761018632212,-150.0,0.0001384,2]
[391943491,1761018632222,-150.0,0.0001384,2]
[391943492,1761018632231,-150.0,0.00013852,2]
[391943493,1761018632242,-150.0,0.00013855,2]
[391943494,1761018632252,-150.0,0.00013862,2]
[391943495,1761018632262,-150.0,0.00013862,2]
[391943496,1761018632271,-150.0,0.00013862,2]
[391943497,1761018632282,-150.0,0.00013876,2]
[391943498,1761018632292,-150.0,0.00013884,2]
[391943499,1761018632303,-150.0,0.00013884,2]
[391943500,1761018632313,-150.0,0.00013884,2]
[391943501,1761018632323,-150.0,0.00013887,2]
[391943502,1761018632332,-1200.0,0.0001389,2]
[391943503,1761018632343,-150.0,0.00013891,2]
[391943504,1761018632356,-150.0,0.00013893,2]
[391943505,1761018632366,-150.0,0.00013909,2]
[391943506,1761018632377,-150.0,0.00013912,2]
[391943507,1761018632386,-127.26172975,0.00013912,2]
[391943508,1761018632399,-172.73827025,0.00013912,2]
[391943509,1761018632409,-300.0,0.00013912,2]
[391943510,1761018632419,-150.0,0.00013912,2]
[391943511,1761018632430,-150.0,0.00013928,2]
[391943512,1761018632439,-150.0,0.00013928,2]
[391943513,1761018632450,-150.0,0.00013932,2]
[391943514,1761018632460,-150.0,0.00013933,2]
[391943515,1761018632469,-150.0,0.00013937,2]
[391943516,1761018632479,-150.0,0.0001394,2]
[391943517,1761018632489,-150.0,0.00013949,2]
[391943518,1761018632498,-150.0,0.00013949,2]
[391943520,1761018632508,-150.0,0.00013956,2]
[391943522,1761018632517,-150.0,0.00013956,2]
[391943524,1761018632527,-150.0,0.00013962,2]
[391943525,1761018632537,-150.0,0.00013968,2]
[391943527,1761018632550,-150.0,0.00013973,2]
[391943529,1761018632559,-150.0,0.00013973,2]
[391943530,1761018632570,-150.0,0.00013974,2]
[391943531,1761018632580,-150.0,0.00013987,2]
[391943532,1761018632589,-150.0,0.00013987,2]
[391943533,1761018632599,-150.0,0.00013987,2]
[391943534,1761018632609,-150.0,0.00013997,2]
[391943535,1761018632619,-150.0,0.00014003,2]
[391943536,1761018632628,-150.0,0.00014006,2]
[391943537,1761018632642,-150.0,0.00014012,2]
[391943538,1761018632652,-150.0,0.00014014,2]
[391943539,1761018632662,-150.0,0.00014017,2]
[391943540,1761018632671,-150.0,0.00014017,2]
[391943541,1761018632681,-150.0,0.00014025,2]
[391943542,1761018632692,-150.0,0.00014037,2]
[391943543,1761018632703,-150.0,0.00014043,2]
[391943544,1761018632715,-150.0,0.0001405,2]
[391943545,1761018632725,-150.0,0.0001405,2]
[391943546,1761018632735,-150.0,0.00014053,2]
[391943547,1761018632744,-150.0,0.00014055,2]
[391943548,1761018632757,-35.75926104,0.00014061,2]
[391943549,1761018632773,-114.24073896,0.00014061,2]
[391943550,1761018632787,-150.0,0.00014061,2]
[391943551,1761018632797,-150.0,0.00014062,2]
[391943552,1761018632807,-150.0,0.00014064,2]
[391943553,1761018632816,-150.0,0.00014064,2]
[391943554,1761018632826,-150.0,0.00014081,2]
[391943555,1761018632836,-150.0,0.00014087,2]
[391943556,1761018632845,-150.0,0.00014095,2]
[391943557,1761018632854,-150.0,0.00014096,2]
[391943558,1761018632864,-150.0,0.00014098,2]
[391943559,1761018632873,-150.0,0.00014105,2]
[391943560,1761018632883,-150.0,0.00014105,2]
[391943561,1761018632893,-150.0,0.0001411,2]
[391943562,1761018632902,-150.0,0.00014112,2]
[391943563,1761018632912,-150.0,0.00014122,2]
[391943564,1761018632922,-150.0,0.00014136,2]
[391943565,1761018632932,-150.0,0.00014137,2]
[391943566,1761018632943,-150.0,0.00014138,2]
[391943567,1761018632953,-150.0,0.00014143,2]
[391943568,1761018632965,-150.0,0.00014143,2]
[391943569,1761018632975,-150.0,0.00014149,2]
[391943570,1761018632985,-150.0,0.00014149,2]
[391943571,1761018632995,-150.0,0.00014154,2]
[391943572,1761018633005,-150.0,0.00014162,2]
[391943573,1761018633015,-150.0,0.00014166,2]
[391943574,1761018633024,-150.0,0.00014176,2]
[391943575,1761018633033,-150.0,0.00014179,2]
[391943576,1761018633043,-150.0,0.00014179,2]
[391943577,1761018633053,-150.0,0.00014187,2]
[391943578,1761018633062,-150.0,0.0001419,2]
[391943579,1761018633072,-150.0,0.00014193,2]
[391943580,1761018633082,-150.0,0.00014193,2]
[391943581,1761018633091,-150.0,0.00014195,2]
[391943582,1761018633101,-150.0,0.00014209,2]
[391943583,1761018633111,-150.0,0.00014212,2]
[391943584,1761018633122,-150.0,0.00014217,2]
[391943585,1761018633131,-150.0,0.00014223,2]
[391943586,1761018633140,-150.0,0.00014237,2]
[391943587,1761018633149,-150.0,0.00014237,2]
[391943588,1761018633159,-150.0,0.00014237,2]
[391943589,1761018633168,-150.0,0.00014237,2]
[391943590,1761018633178,-150.0,0.00014237,2]
[391943591,1761018633188,-150.0,0.00014237,2]
[391943592,1761018633197,-150.0,0.00014237,2]
[391943593,1761018633207,-150.0,0.00014251,2]
[391943594,1761018633217,-150.0,0.00014257,2]
[391943595,1761018633227,-150.0,0.00014262,2]
[391943596,1761018633236,-150.0,0.00014265,2]
[391943597,1761018633246,-150.0,0.00014279,2]
[391943598,1761018633255,-150.0,0.00014281,2]
[391943599,1761018633265,-150.0,0.00014281,2]
[391943600,1761018633275,-150.0,0.00014284,2]
[391943601,1761018633285,-150.0,0.00014287,2]
[391943602,1761018633295,-150.0,0.00014295,2]
[391943603,1761018633304,-150.0,0.00014295,2]
[391943604,1761018633315,-150.0,0.00014298,2]
[391943605,1761018633325,-150.0,0.00014308,2]
[391943606,1761018633335,-150.0,0.00014312,2]
[391943607,1761018633346,-150.0,0.0001432,2]
[391943608,1761018633355,-150.0,0.00014325,2]
[391943609,1761018633365,-150.0,0.00014325,2]
[391943610,1761018633375,-150.0,0.00014331,2]
[391943611,1761018633385,-150.0,0.00014331,2]
[391943612,1761018633395,-159.14,0.00014333,2]
[391943613,1761018633404,-150.0,0.00014336,2]
[391943614,1761018633414,-150.0,0.00014337,2]
[391943615,1761018633424,-150.0,0.00014338,2]
[391943616,1761018633433,-150.0,0.00014352,2]
[391943617,1761018633443,-150.0,0.00014362,2]
[391943618,1761018633453,-150.0,0.00014364,2]
[391943619,1761018633462,-150.0,0.00014369,2]
[391943620,1761018633472,-150.0,0.00014369,2]
[391943621,1761018633481,-150.0,0.00014376,2]
[391943622,1761018633490,-150.0,0.00014377,2]
[391943623,1761018633499,-150.0,0.00014379,2]
[391943624,1761018633512,-150.0,0.00014387,2]
[391943625,1761018633525,-150.0,0.00014393,2]
[391943626,1761018633534,-150.0,0.0001441,2]
[391943627,1761018633543,-150.0,0.0001441,2]
[391943628,1761018633554,-150.0,0.00014412,2]
[391943629,1761018633563,-150.0,0.00014413,2]
[391943630,1761018633573,-150.0,0.00014413,2]
[391943631,1761018633582,-150.0,0.00014419,2]
[391943632,1761018633591,-150.0,0.00014421,2]
[391943633,1761018633731,-150.0,0.00014424,2]
[391943634,1761018633742,-150.0,0.00014424,2]
[391943635,1761018633752,-150.0,0.00014431,2]
[391943636,1761018633761,-150.0,0.00014437,2]
[391943637,1761018633771,-150.0,0.00014449,2]
[391943638,1761018633780,-150.0,0.00014457,2]
[391943639,1761018633789,-150.0,0.00014457,2]
[391943640,1761018633798,-150.0,0.0001446,2]
[391943641,1761018633808,-150.0,0.00014462,2]
[391943642,1761018633818,-150.0,0.00014468,2]
[391943643,1761018633828,-150.0,0.00014471,2]
[391943644,1761018633837,-150.0,0.00014477,2]
[391943645,1761018633848,-150.0,0.00014487,2]
[391943646,1761018633857,-150.0,0.00014487,2]
[391943647,1761018633867,-150.0,0.00014487,2]
[391943648,1761018633876,-150.0,0.000145,2]
[391943649,1761018633885,-150.0,0.00014501,2]
[391943650,1761018633895,-150.0,0.00014501,2]
[391943651,1761018633908,-150.0,0.00014506,2]
[391943652,1761018633926,-150.0,0.00014512,2]
[391943653,1761018633935,-150.0,0.00014518,2]
[391943654,1761018633945,-150.0,0.00014518,2]
[391943655,1761018633955,-150.0,0.00014525,2]
[391943656,1761018633964,-150.0,0.00014525,2]
[391943657,1761018633973,-150.0,0.00014534,2]
[391943658,1761018633983,-150.0,0.00014537,2]
[391943659,1761018633993,-150.0,0.00014541,2]
[391943660,1761018634002,-150.0,0.00014542,2]
[391943661,1761018634012,-150.0,0.00014546,2]
[391943662,1761018634022,-150.0,0.00014546,2]
[391943663,1761018634031,-150.0,0.00014562,2]
[391943664,1761018634040,-150.0,0.00014562,2]
[391943665,1761018634049,-150.0,0.00014565,2]
[391943666,1761018634059,-150.0,0.00014581,2]
[391943667,1761018634068,-150.0,0.00014583,2]
[391943668,1761018634077,-150.0,0.00014587,2]
[391943669,1761018634087,-150.0,0.0001459,2]
[391943670,1761018634096,-150.0,0.0001459,2]
[391943671,1761018634105,-150.0,0.0001459,2]
[391943672,1761018634114,-150.0,0.00014598,2]
[391943673,1761018634124,-150.0,0.00014612,2]
[391943674,1761018634133,-150.0,0.00014612,2]
[391943675,1761018634142,-150.0,0.00014612,2]
[391943676,1761018634151,-150.0,0.00014619,2]
[391943677,1761018634161,-150.0,0.00014622,2]
[391943678,1761018634170,-150.0,0.00014634,2]
[391943679,1761018634180,-150.0,0.00014634,2]
[391943680,1761018634189,-150.0,0.00014637,2]
[391943681,1761018634199,-150.0,0.0001464,2]
[391943682,1761018634209,-150.0,0.0001464,2]
[391943683,1761018634218,-150.0,0.00014647,2]
[391943684,1761018634227,-150.0,0.00014653,2]
[391943685,1761018634237,-150.0,0.00014658,2]
[391943686,1761018634246,-150.0,0.00014662,2]
[391943687,1761018634255,-150.0,0.00014662,2]
[391943688,1761018634265,-150.0,0.00014675,2]
[391943689,1761018634275,-150.0,0.00014678,2]
[391943690,1761018634284,-150.0,0.00014678,2]
[391943691,1761018634293,-150.0,0.00014687,2]
[391943692,1761018634303,-150.0,0.00014698,2]
[391943693,1761018634313,-150.0,0.00014703,2]
[391943694,1761018634323,-150.0,0.00014704,2]
[391943695,1761018634332,-150.0,0.00014705,2]
[391943696,1761018634341,-150.0,0.00014705,2]
[391943697,1761018634351,-150.0,0.00014709,2]
[391943698,1761018634360,-150.0,0.00014712,2]
[391943699,1761018634370,-150.0,0.00014722,2]
[391943700,1761018634379,-150.0,0.00014722,2]
[391943701,1761018634388,-150.0,0.00014732,2]
[391943702,1761018634398,-262.25,0.00014735,2]
[391943703,1761018634410,-150.0,0.00014737,2]
[391943704,1761018634419,-150.0,0.00014743,2]
[391943705,1761018634428,-150.0,0.00014752,2]
[391943706,1761018634438,-150.0,0.00014756,2]
[391943707,1761018634448,-150.0,0.00014756,2]
[391943708,1761018634457,-150.0,0.0001476,2]
[391943709,1761018634467,-150.0,0.00014762,2]
[391943710,1761018634477,-150.0,0.00014764,2]
[391943711,1761018634486,-150.0,0.00014766,2]
[391943712,1761018634495,-150.0,0.00014766,2]
[391943713,1761018634505,-150.0,0.00014784,2]
[391943714,1761018634515,-150.0,0.00014786,2]
[391943715,1761018634524,-150.0,0.00014788,2]
[391943716,1761018634533,-150.0,0.00014799,2]
[391943717,1761018634543,-150.0,0.00014799,2]
[391943718,1761018634552,-154.63452198,0.000148,2]
[391943719,1761018634562,-150.0,0.0001481,2]
[391943720,1761018634572,-150.0,0.0001481,2]
[391943721,1761018634582,-150.0,0.00014811,2]
[391943722,1761018634591,-150.0,0.00014813,2]
[391943723,1761018634601,-150.0,0.00014817,2]
[391943724,1761018634611,-150.0,0.0001482,2]
[391943725,1761018634620,-150.0,0.00014824,2]
[391943726,1761018634629,-150.0,0.00014836,2]
[391943727,1761018634643,-209.55709565,0.00014836,2]
[391943728,1761018634654,-1385.54221588,0.00014836,2]
[391943729,1761018634664,-397.09577677,0.00014836,2]
[391943730,1761018634674,-150.0,0.00014845,2]
[391943731,1761018634685,-150.0,0.00014846,2]
[391943732,1761018634694,-150.0,0.00014854,2]
[391943733,1761018634705,-150.0,0.00014854,2]
[391943734,1761018634715,-150.0,0.00014861,2]
[391943735,1761018634725,-150.0,0.00014865,2]
[391943736,1761018634734,-150.0,0.00014871,2]
[391943737,1761018634743,-150.0,0.00014871,2]
[391943738,1761018634753,-150.0,0.00014873,2]
[391943739,1761018634763,-150.0,0.00014875,2]
[391943740,1761018634772,-150.0,0.00014886,2]
[391943741,1761018634781,-150.0,0.00014893,2]
[391943742,1761018634790,-150.0,0.00014893,2]
[391943743,1761018634799,-150.0,0.00014898,2]
[391943744,1761018634809,-150.0,0.00014898,2]
[391943745,1761018634818,-235.94227556,0.000149,2]
[391943746,1761018634828,-1057.99727026,0.000149,2]
[391943747,1761018635157,-287.44003504,0.000149,2]
[391943748,1761018635169,-500.0,0.000149,2]
[391943749,1761018635181,-3154.5626947,0.000149,2]
[391943750,1761018635190,-245.4373053,0.000149,2]
[391943751,1761018635355,-1991.43043821,0.000149,2]
[391943752,1761018635365,-4224.50049361,0.000149,2]
[391943753,1761018635375,-150.0,0.00014901,2]
[391943754,1761018635384,-150.0,0.00014905,2]
[391943755,1761018635393,-150.0,0.00014911,2]
[391943756,1761018635402,-150.0,0.00014929,2]
[391943757,1761018635411,-150.0,0.0001493,2]
[391943758,1761018635420,-150.0,0.00014931,2]
[391943759,1761018635429,-150.0,0.00014936,2]
[391943760,1761018635439,-150.0,0.00014939,2]
[391943761,1761018635448,-150.0,0.00014942,2]
[391943762,1761018635458,-150.0,0.00014942,2]
[391943763,1761018635467,-150.0,0.00014946,2]
[391943764,1761018635479,-217.0,0.00014954,2]
[391943765,1761018635489,-159.14,0.00014956,2]
[391943766,1761018635498,-150.0,0.00014958,2]
[391943767,1761018635507,-150.0,0.00014961,2]
[391943768,1761018635516,-504.79574314,0.00014973,2]
[391943769,1761018635525,-500.0,0.00014973,2]
[391943770,1761018635536,-150.0,0.00014986,2]
[391943771,1761018635546,-150.0,0.00014986,2]
[391943772,1761018635556,-150.0,0.00014986,2]
[391943773,1761018635565,-150.0,0.00014986,2]
[391943774,1761018635575,-150.0,0.00014986,2]
[391943775,1761018635585,-150.0,0.00014986,2]
[391943776,1761018635596,-150.0,0.00014986,2]
[391943777,1761018635605,-150.0,0.00014986,2]
[391943778,1761018635616,-150.0,0.00014986,2]
[391943779,1761018635625,-150.0,0.00014986,2]
[391943780,1761018635636,-150.0,0.00014986,2]
[391943781,1761018635648,-150.0,0.00014986,2]
[391943782,1761018635658,-150.0,0.00014986,2]
[391943783,1761018635668,-165.58082003,0.0001499,2]
[391943784,1761018635677,-345.125,0.00014991,2]
[391943785,1761018635686,-151.0,0.00014991,2]
[391943786,1761018635695,-151.0,0.00014991,2]
[391943787,1761018635704,-151.0,0.00014991,2]
[391943788,1761018635713,-151.0,0.00014991,2]
[391943789,1761018635722,-151.0,0.00014991,2]
[391943790,1761018635731,-151.0,0.00014991,2]
[391943791,1761018635740,-151.0,0.00014991,2]
[391943792,1761018635749,-151.0,0.00014991,2]
[391943793,1761018635758,-151.0,0.00014991,2]
[391943794,1761018635767,-151.0,0.00014991,2]
[391943795,1761018635776,-151.0,0.00014991,2]
[391943796,1761018635786,-291.79566579,0.00014991,2]
[391943797,1761018635795,-151.0,0.00014991,2]
[391943798,1761018635804,-151.0,0.00014991,2]
[391943799,1761018635814,-151.0,0.00014991,2]
[391943800,1761018635823,-154.10692146,0.00014991,2]
[391943801,1761018635832,-2710.56087694,0.00014999,2]
[391943802,1761018635841,-515.82858355,0.00014999,2]
[391943803,1761018635850,-28656.36103806,0.00015,2]
[391943804,1761018635866,-299.99,0.00015,2]
[391943820,1761018638135,-463.97902043,0.00015,2]
[391943821,1761018638148,-1037.35505948,0.00015,2]
[391943822,1761018638161,-1084.5999956,0.00015,2]
[391943823,1761018638172,-1299.06500054,0.00015,2]
[391943824,1761018638182,-1169.0970635,0.00015,2]
[391943825,1761018638193,-1416.27816588,0.00015,2]
[391943826,1761018638205,-1184.33330913,0.00015,2]
[391943827,1761018638298,-1679.8066377,0.00015,2]
[391943972,1761018640190,-653.58648408,0.00015,2]
[391944200,1761018641584,-1.6e-07,0.00015,2]
[391944202,1761018641597,-104425.98841872,0.00015,2]
[391944205,1761018641614,-440030.05597561,0.00015,2]
[391944207,1761018641624,-1437379.04384653,0.00015,2]
[391944209,1761018641633,-2114.6090372,0.00015,2]
[391944211,1761018641647,-60484.0196309,0.00015,2]
[391944213,1761018641656,-186.34787632,0.0001503,2]
[391944215,1761018641666,-622.86834358,0.00015081,2]
[391944217,1761018641675,-1680.0,0.00015151,2]
[391944219,1761018641684,-250.0,0.00015166,2]
[391944221,1761018641694,-500.0,0.00015166,2]
[391944223,1761018641703,-250.0,0.00015179,2]
[391944225,1761018641712,-420.0,0.00015243,2]
[391944228,1761018641722,-1680.0,0.00015279,2]
[391944229,1761018641731,-159.14,0.00015579,2]
[391944231,1761018641740,-917.81125216,0.00016,2]
[391944233,1761018641750,-159.14,0.00016203,2]
[391944235,1761018641759,-1480.0,0.00016602,2]
[391944237,1761018641768,-250.0,0.00016697,7]
[391944239,1761018641778,-587.0,0.00016701,2]
[391944241,1761018641787,-2351.0,0.00016807,2]
[391944243,1761018641797,-13495.8089866,0.00016908,2]
[391944245,1761018641806,-2236.86774347,0.00017031,2]
[391944247,1761018641815,-4224.50049359,0.00017031,2]
[391944249,1761018641824,-251.27695105,0.00017108,2]
[391944251,1761018641834,-3011.3220205,0.00017334,2]
[391944253,1761018641842,-235.94227554,0.00018116,2]
[391944255,1761018641852,-425.0,0.00018299,2]
[391944258,1761018641862,-485.0,0.00018488,2]
[391944260,1761018641871,-150.65,0.000188,2]
[391944262,1761018641880,-150.65,0.000188,2]
[391944264,1761018641890,-150.65,0.000188,2]
[391944266,1761018641899,-150.65,0.000188,2]
[391944268,1761018641908,-150.65,0.000188,2]
[391944270,1761018641917,-150.65,0.000188,2]
[391944272,1761018641927,-448.06111254,0.00018803,2]
[391944274,1761018641936,-476.03091061,0.00018888,2]
[391944276,1761018641946,-2236.86774347,0.00019163,2]
[391944278,1761018641955,-4224.50049359,0.00019163,2]
[391944280,1761018641964,-201.19,0.00019926,2]
[391944282,1761018641974,-500.0,0.00019999,2]
[391944284,1761018641983,-261.31495769,0.00019999,2]
[391944286,1761018641993,-199.36120417,0.00019999,2]
[391944288,1761018642002,-490.7400406,0.00019999,2]
[391944290,1761018642011,-500.0,0.00019999,2]
[391944292,1761018642020,-500.0,0.00019999,2]
[391944294,1761018642029,-500.0,0.00019999,2]
[391944296,1761018642038,-500.0,0.00019999,2]
[391944298,1761018642047,-500.0,0.00019999,2]
[391944300,1761018642057,-500.0,0.00019999,2]
[391944302,1761018642066,-500.0,0.00019999,2]
[391944304,1761018642075,-500.0,0.00019999,2]
[391944306,1761018642084,-500.0,0.00019999,2]
[391944308,1761018642094,-500.0,0.00019999,2]
[391944310,1761018642104,-500.0,0.00019999,2]
[391944312,1761018642114,-500.0,0.00019999,2]
[391944314,1761018642123,-500.0,0.00019999,2]
[391944317,1761018642134,-500.0,0.00019999,2]
[391944318,1761018642143,-500.0,0.00019999,2]
[391944320,1761018642152,-263.55422092,0.00019999,2]
[391944322,1761018642162,-500.0,0.00019999,2]
[391944324,1761018642172,-500.0,0.00019999,2]
[391944326,1761018642181,-500.0,0.00019999,2]
[391944329,1761018642191,-500.0,0.00019999,2]
[391944331,1761018642200,-500.0,0.00019999,2]
[391944333,1761018642211,-500.0,0.00019999,2]
[391944335,1761018642220,-500.0,0.00019999,2]
[391944337,1761018642229,-500.0,0.00019999,2]
[391944339,1761018642238,-500.0,0.00019999,2]
[391944341,1761018642248,-500.0,0.00019999,2]
[391944343,1761018642256,-500.0,0.00019999,2]
[391944345,1761018642266,-500.0,0.00019999,2]
[391944347,1761018642276,-500.0,0.00019999,2]
[391944349,1761018642285,-500.0,0.00019999,2]
[391944351,1761018642294,-500.0,0.00019999,2]
[391944353,1761018642303,-500.0,0.00019999,2]
[391944354,1761018642312,-500.0,0.00019999,2]
[391944356,1761018642321,-500.0,0.00019999,2]
[391944359,1761018642331,-500.0,0.00019999,2]
[391944361,1761018642342,-309.66,0.00020187,2]
[391944363,1761018642351,-150.0,0.00020296,2]
[391944365,1761018642360,-666.0,0.00020395,3]
[391944368,1761018642378,-1807.01626604,0.0002085,2]
[391944370,1761018642389,-1958.85,0.00020857,2]
[391944372,1761018642399,-2236.86774347,0.00021294,2]
[391944374,1761018642408,-4224.50049359,0.00021294,2]
[391944376,1761018642418,-235.94227554,0.00021331,2]
[391944378,1761018642427,-150.99,0.00022562,2]
[391944380,1761018642439,-9999.99,0.00022562,2]
[391944383,1761018642450,-607.16562308,0.00022963,2]
[391944385,1761018642460,-1669.811,0.00023175,2]
[391944387,1761018642469,-891.873,0.00023175,2]
[391944389,1761018642479,-902.0,0.00023175,2]
[391944391,1761018642488,-840.0,0.00023404,2]
[391944393,1761018642497,-2236.86774347,0.00023425,2]
[391944395,1761018642507,-4224.50049359,0.00023425,2]
[391944397,1761018642516,-201.0,0.00023453,2]
[391944399,1761018642526,-201.0,0.00023528,2]
[391944401,1761018642535,-201.0,0.00023553,2]
[391944403,1761018642545,-201.0,0.00023722,2]
[391944405,1761018642554,-201.0,0.00023766,2]
[391944407,1761018642564,-201.0,0.00023787,2]
[391944409,1761018642573,-201.0,0.00023902,2]
[391944412,1761018642582,-201.0,0.00023905,2]
[391944414,1761018642592,-201.0,0.00024169,2]
[391944416,1761018642601,-201.0,0.00024192,2]
[391944418,1761018642610,-201.0,0.00024288,2]
[391944420,1761018642619,-201.0,0.00024427,2]
[391944422,1761018642630,-235.94227554,0.00024547,2]
[391944424,1761018642644,-1000.0,0.00024658,2]
[391944426,1761018642655,-208.4,0.00024658,2]
[391944428,1761018642665,-201.0,0.00024695,2]
[391944429,1761018642675,-201.0,0.00024742,2]
[391944430,1761018642685,-249.9584534,0.00024773,2]
[391944431,1761018642695,-150.65,0.0002479,2]
[391944432,1761018642704,-150.65,0.0002479,2]
[391944434,1761018642716,-151.0,0.000248,7]
[391944436,1761018642725,-161.043761,0.000248,7]
[391944438,1761018642734,-19204.08,0.000248,7]
[391944440,1761018642743,-324340.239871,0.000248,3]
[391944442,1761018642752,-201.0,0.00024887,2]
[391944444,1761018642761,-21926.9498236,0.000249,3]
[391944446,1761018642770,-201.0,0.00025038,2]
[391944448,1761018642780,-201.0,0.00025087,2]
[391944450,1761018642789,-201.0,0.00025232,2]
[391944452,1761018642799,-201.0,0.00025267,2]
[391944454,1761018642808,-201.0,0.00025273,2]
[391944456,1761018642818,-201.0,0.00025351,2]
[391944458,1761018642827,-201.0,0.00025378,2]
[391944460,1761018642837,-201.0,0.00025424,2]
[391944462,1761018642847,-201.0,0.00025507,2]
[391944464,1761018642855,-201.0,0.00025555,2]
[391944466,1761018642865,-2236.86774347,0.00025557,2]
[391944468,1761018642875,-4224.50049359,0.00025557,2]
[391944470,1761018642884,-443.0,0.00026,2]
[391944472,1761018642894,-301.0,0.00026,2]
[391944474,1761018642903,-902.0,0.00026175,2]
[391944477,1761018642913,-5000.0,0.00026452,2]
[391944479,1761018642923,-309.66,0.00026676,2]